Cogmind - Beta 12 X6 @@@ ROGUE MODE // 2023.01.31 @ 15:19:58 Player: Lunatic Blue Result: Destroyed by D-53 Grenadier with Mini Grenade Launcher Performance ------------- Evolutions (0) 0 Regions Visited (2) 400 Robots Destroyed (21) 105 Value Destroyed (331) 331 Prototype IDs (0) 0 Alien Tech Used (0) 0 Bonus (0) 0 TOTAL SCORE: 836 Bonus ------- None Cogmind --------- Core Integrity 0/250 Matter 190/300 Energy 63/250 System Corruption 0% Temperature Warm (125) Movement Treading (320) Ox2 Location -10/Mines Parts ------- > --- POWER (1) -------- Ion Engine > --- PROPULSION (2) --- Light Treads Light Treads > --- UTILITY (2) ------ Huge Storage Unit Structural Scanner > --- WEAPON (2) ------- Particle Cannon Particle Cannon > --- INVENTORY (25) --- Light Treads Light Treads Wheel Compact Wheel High-capacity Matter Pod (200) Visual Processing Unit Experimental Sensor Array Signal Interpreter Medium Armor Plating Medium Armor Plating Medium Armor Plating Medium Armor Plating Tractor Beam EM Pulse Gun Particle Cannon Particle Cannon Light Assault Rifle Light Assault Rifle Grenade Launcher Peak State ------------ > --- POWER ------------ Ion Engine > --- PROPULSION ------- Light Treads Compact Wheel > --- UTILITY ---------- Huge Storage Unit Medium Armor Plating > --- WEAPON ----------- Assault Rifle Light Assault Rifle > --- INVENTORY -------- Ion Engine Light Treads Light Treads Light Treads Light Treads Wheel Compact Wheel High-capacity Matter Pod Structural Scanner Visual Processing Unit Experimental Sensor Array Signal Interpreter Medium Armor Plating Medium Armor Plating Medium Armor Plating Tractor Beam EM Pulse Gun Particle Cannon Particle Cannon Particle Cannon Particle Cannon Light Assault Rifle Light Assault Rifle Grenade Launcher [Rating: 12] Favorites ----------- Power Ion Engine Engine Ion Engine Propulsion Light Treads Treads Light Treads Leg Aluminum Leg Wheel Wheel Utility Huge Storage Unit Device Structural Scanner Storage Huge Storage Unit Protection Medium Armor Plating Weapon Light Assault Rifle Energy Gun EM Pulse Gun Energy Cannon Particle Cannon Ballistic Gun Light Assault Rifle Launcher Grenade Launcher Build | -11 -10 -10 ------- Run | Jun Mat Min Slots Evolved . | . . . Power . | . . . Propulsion . | . . . Utility . | . . . Weapon . | . . . Parts Attached 18 | . 7 11 Power 1 | . . 1 Engine 1 | . . 1 Core . | . . . Reactor . | . . . Propulsion 6 | . 4 2 Treads 4 | . 2 2 Leg . | . . . Wheel 2 | . 2 . Hover . | . . . Flight . | . . . Utility 4 | . 1 3 Device 2 | . . 2 Storage 1 | . 1 . Processor . | . . . Hackware . | . . . Protection 1 | . . 1 Artifact . | . . . Weapon 7 | . 2 5 Energy Gun . | . . . Energy Cannon 2 | . . 2 Ballistic Gun 4 | . 2 2 Ballistic Cannon . | . . . Launcher 1 | . . 1 Special Weapon . | . . . Impact Weapon . | . . . Slashing Weapon . | . . . Piercing Weapon . | . . . Special Melee Weapon . | . . . Unidentified Prototypes . | . . . Parts Lost 6 | . 1 5 Power 1 | . . 1 Propulsion 3 | . 1 2 Utility . | . . . Weapon 2 | . . 2 Highest Loss Streak 3 | . 1 3 To Critical Strikes . | . . . Average Slot Usage (%) 99 | . 99 98 Engine 14 | . 14 14 Treads 13 | . 13 14 Wheel 13 | . 13 13 Device 3 | . . 10 Storage 23 | . 27 17 Ballistic Gun 26 | . 26 26 Naked Turns . | . . . Heaviest Build 94 | 14 94 93 Greatest Support 20 | 20 20 16 Greatest Overweight (x) 9 | . 9 5 Average Overweight (x) 6 | . 8 5 Largest Inventory Capacity 25 | . 25 25 Average Capacity 24 | . 24 25 Most Carried 25 | . 25 24 Average Carried 19 | . 17 23 Final Capacity 25 | 8 25 25 Final Carried 24 | 6 24 19 Class Distribution -------------------- 100% | Mutant Dominant Class ---------------- Mutant | -10/Materials Mutant | -10/Mines Resources | -11 -10 -10 ----------- Run | Jun Mat Min Matter Collected 692 | 182 396 114 Remotely . | . . . Salvage Created 622 | . 482 140 Parts 54 | . 48 6 Haulers Intercepted 1 | . 1 . Recyclers Shooed 1 | . 1 . Parts Field Recycled . | . . . Retrieved Matter . | . . . Parts Self-Destructed . | . . . Prevented . | . . . Kills | -11 -10 -10 ------- Run | Jun Mat Min Combat Hostiles Destroyed 22 | . 9 13 Guns 13 | . 9 4 AOE 9 | . . 9 Classes Destroyed 8 | . 7 1 Worker 1 | . 1 . Builder 1 | . 1 . Hauler 1 | . 1 . Recycler 2 | . 2 . Watcher 3 | . 3 . Swarmer 8 | . 6 2 Grunt 5 | . 3 2 Assembled 9 | . . 9 Best Kill Streak 9 | . 5 9 Combat Bots Only 9 | . 4 9 Max Kills in Single Turn 3 | . 1 3 Gunslinging . | . . . Exploded 3 | . . 3 Melee . | . . . Uniques/NPCs Destroyed . | . . . Combat | -11 -10 -10 -------- Run | Jun Mat Min Damage Taken 1093 | . 257 836 Core 263 | . 59 204 Absorbed by Shields . | . . . Core Remaining (%) 100 | 100 . . Volleys Fired 60 | . 35 25 Largest 2 | . 2 2 Hottest 136 | . 40 136 Shots Fired 111 | . 70 41 Gun 100 | . 70 30 Cannon 4 | . . 4 Launcher 7 | . . 7 Special . | . . . Kinetic 100 | . 70 30 Thermal 4 | . . 4 Explosive 7 | . . 7 Electromagnetic . | . . . Robot Hit Streak 16 | . 11 16 Robot Miss Streak 5 | . 5 2 Penetration Max . | . . . Secondary Targets 4 | . 3 1 Max Gunslinging Chain 1 | . 1 1 Shots Hit Robots 64 | . 38 26 Core Hits 48 | . 21 27 Critical Kills . | . . . Critical Parts Destroyed . | . . . Critical Strikes . | . . . Melee Attacks . | . . . Impact . | . . . Slashing . | . . . Piercing . | . . . Sneak Attacks . | . . . Combat Hostiles . | . . . Follow-up Attacks . | . . . Damage Inflicted 1317 | . 423 894 Guns 632 | . 420 212 Cannons 81 | . . 81 Explosions 601 | . . 601 Melee . | . . . Ramming 3 | . 3 . Kinetic 632 | . 420 212 Thermal 81 | . . 81 Explosive 601 | . . 601 Electromagnetic . | . . . Impact . | . . . Slashing . | . . . Piercing . | . . . Highest Corruption . | . . . Average Corruption . | . . . Corruption Purged . | . . . Corruption Blocked . | . . . Overload Shots . | . . . Overflow Damage 13 | . . 13 Projectiles . | . . . Explosions 13 | . . 13 Melee . | . . . Knockbacks . | . . . Impact . | . . . Kinetic . | . . . Secondary . | . . . Self-Inflicted Damage 40 | . . 40 Shots 1 | . . 1 Rammed . | . . . Targets Rammed 1 | . 1 . Kicked . | . . . Crushed 1 | . 1 . Highest Temperature 125 | . 18 125 Average Temperature 16 | . 8 19 Received Heat Transfer 234 | . 90 144 Siege Activations . | . . . Robots Corrupted . | . . . Combat Hostiles . | . . . Parts Fried . | . . . Impact Corruptions . | . . . Robots Melted . | . . . Combat Hostiles . | . . . Parts Melted . | . . . Heat Transferred 148 | . . 148 Parts Sabotaged . | . . . Parts Stolen . | . . . Parts Stripped . | . . . Power Chain Reactions . | . . . Missiles Intercepted . | . . . Alert | -11 -10 -10 ------- Run | Jun Mat Min Peak Influence 200 | . 200 73 Initial 23 | . . 23 Average 57 | . 71 31 Maximum Alert Level 1 | . 1 . Low Security (%) 99 | . 99 100 Level 1 . | . . . Level 2 . | . . . Level 3 . | . . . Level 4 . | . . . Level 5 . | . . . High Security . | . . . Max Security . | . . . Squads Dispatched 2 | . 2 . Investigation 2 | . 2 . Extermination . | . . . Reinforcement . | . . . Assault . | . . . Garrison . | . . . Intercept . | . . . Searches Triggered . | . . . Construction Impeded . | . . . Haulers Reinforced . | . . . Active Scanning Responses . | . . . Cargo Convoy Interrupts . | . . . Stealth | -11 -10 -10 --------- Run | Jun Mat Min Distress Signals 2 | . 2 . Communications Jammed . | . . . Distress Signals . | . . . Times Spotted 40 | . 20 20 Peak Tracking Total 10 | . 6 10 Tactical Retreats 2 | . 2 . Traps | -11 -10 -10 ------- Run | Jun Mat Min Traps Triggered . | . . . Indirectly . | . . . Trap Hack Attempts . | . . . Triggered . | . . . Disarmed . | . . . Reprogrammed . | . . . Reused . | . . . Traps Extracted . | . . . Installed . | . . . Triggered . | . . . Machines | -11 -10 -10 ---------- Run | Jun Mat Min Machines Disabled . | . . . Max in Single Turn . | . . . Machines Repaired . | . . . Machines Sabotaged . | . . . Overloaded Fab Kills . | . . . Hacking | -11 -10 -10 --------- Run | Jun Mat Min Machines Accessed 4 | . 4 . Terminals 4 | . 4 . Fabricators . | . . . Repair Stations . | . . . Recycling Units . | . . . Scanalyzers . | . . . Garrison Access . | . . . Total Hacks 11 | . 11 . Successful 1 | . 1 . Failed 10 | . 10 . Catastrophic 2 | . 2 . Database Lockouts . | . . . Manual 11 | . 11 . Terminals 11 | . 11 . Fabricators . | . . . Repair Stations . | . . . Recycling Units . | . . . Scanalyzers . | . . . Garrison Access . | . . . Terminal Hacks . | . . . Fabricator Hacks . | . . . Repair Station Hacks . | . . . Recycling Unit Hacks . | . . . Scanalyzer . | . . . Garrison Access Hacks . | . . . Unauthorized Hacks 1 | . 1 . Terminals 1 | . 1 . Operators 1 | . 1 . Fabricators . | . . . Repair Stations . | . . . Recycling Units . | . . . Scanalyzers . | . . . Garrison Access . | . . . Data Cores Recovered . | . . . Used . | . . . Hacking Detections 4 | . 4 . Full Trace Events 3 | . 3 . Feedback Events . | . . . Feedback Blocked . | . . . Robot Schematics Acquired . | . . . Robots Built . | . . . Authchips . | . . . Time . | . . . Total Robot Build Rating . | . . . Part Schematics Acquired . | . . . Parts Built . | . . . Authchips . | . . . Time . | . . . Total Part Build Rating . | . . . Parts Repaired . | . . . Time . | . . . Parts Recycled . | . . . Recycled Matter . | . . . Retrieved Matter . | . . . Retrieved Components . | . . . Parts Scanalyzed . | . . . Part Schematics Acquired . | . . . Parts Damaged . | . . . Bothacking | -11 -10 -10 ------------ Run | Jun Mat Min Used RIF Installer . | . . . Robots Hacked . | . . . Non-combat . | . . . Combat . | . . . Robot Hacks Applied . | . . . Relay Couplers Released . | . . . Fabnet Peak Effective % . | . . . Robots Rewired . | . . . Allies Hacked . | . . . Hacks Repelled . | . . . Allies | -11 -10 -10 -------- Run | Jun Mat Min Total Allies . | . . . Largest Group . | . . . Highest-Rated Group . | . . . Highest-Rated Ally . | . . . Total Orders . | . . . Ally Attacks . | . . . Total Damage . | . . . Kills . | . . . Allies Corrupted . | . . . Allies Melted . | . . . Intel | -11 -10 -10 ------- Run | Jun Mat Min Robot Analysis Total . | . . . Derelict Logs Recovered . | . . . Drone Launches . | . . . Drone Recoveries . | . . . Exploration | -11 -10 -10 ------------- Run | Jun Mat Min Turns Passed 1397 | . 903 494 Spaces Moved 597 | 1 365 231 Core . | . . . Treads . | . . . Legs 25 | 1 24 . Wheels 572 | . 341 231 Hover . | . . . Flight . | . . . Fastest Speed 120 | 120 120 175 Average Speed 194 | 120 206 175 Slowest Speed 215 | 120 215 175 Overloaded Moves . | . . . Propulsion Burnouts . | . . . Robots Hopped . | . . . Cave-ins Triggered . | . . . Exploration Rate (%) 31 | 2 43 49 Regions Visited 2 Branch Regions 1 Pre-discovered Areas . | . . . Known Exits Taken . | . . . Unknown Exits Taken 2 | 1 1 . Scrap Searched 1 | . . 1 Spaces Dug . | . . . Terrain Destroyed 40 | . . 40 Melee . | . . . Projectile . | . . . AOE 40 | . . 40 Terrain Rammed . | . . . Walls Destroyed . | . . . Machines Disabled . | . . . Actions | -11 -10 -10 --------- Run | Jun Mat Min Total 732 | . 449 283 Wait 30 | . 16 14 Move 595 | . 364 231 Hop . | . . . Pick Up 23 | . 22 1 Fast Attach 1 | . 1 . Attach 9 | . 3 6 Detach . | . . . Swap 8 | . 3 5 Drop 5 | . 4 1 Fire 60 | . 35 25 Melee . | . . . Ram . | . . . Kick . | . . . Crush 1 | . 1 . Escape Stasis . | . . . Rewire . | . . . Trap . | . . . Miscellaneous . | . . . Route ------- -11/Junkyard -10/Materials -10/Mines History --------- Turn | Location | Event 1 | -11/Junkyard | Discovered new exit (range 0) 1 | -11/Junkyard | Entered Materials 300 | -10/Materials | Build established: Mutant 840 | -10/Materials | Discovered new exit (range 14) 904 | -10/Materials | Entered Mines 1058 | -10/Mines | Found a damaged Exp. Sensor Array with a note attached 1062 | -10/Mines | Found Prototype Device 1347 | -10/Mines | Lost 3 parts (1n2w) 1366 | -10/Mines | Assembled infested the area 1379 | -10/Mines | Core integrity fell below 50% 1395 | -10/Mines | Core integrity fell below 20% 1398 | -10/Mines | Destroyed by D-53 Grenadier with Mini Grenade Launcher Last Messages --------------- 01378_ as-92837 destroyed. 01378_ as-76831 destroyed. 01379_ Com. Wheel destroyed. 01380_ as-30040 destroyed. 01380_ as-23674 destroyed. 01380_ as-89231 destroyed. 01382_ as-49541 destroyed. 01384_ as-28966 destroyed. 01389_ C-30 ARC bursts open, deploying its payload. 01389_ D-53 Grenadier unfolds itself. 01390_ U-05 Engineer lays Concrete. 01390_ Ion Engine destroyed. 01391_ U-05 Engineer lays Concrete. 01392_ U-05 Engineer builds a Wall. 01392_ K-01 Serf collects debris. 01395_ The unstable cave ceiling collapses. 01395_ U-05 Engineer lays Concrete. 01396_ U-05 Engineer builds a Wall. 01397_ as-70473 suffers critical hit (Destroy). 01397_ as-70473 destroyed. Map ----- +----------------------------------------------------+ | ############ ##?????????????????????????????????? | | ?????????## ##?????????????????????????????????? | | ?????????## ###????????????????????????????????? | | ?????????## #####??????????????????????????????? | | ?????####### #####?????????????????????????????? | | ?????######## ####????????????????????????????? | | ????? """ #### ####???????????????????????????? | | ????? """ ####??????????????????????????? | | ????? """ #####????????????????????????? | | ? #### #####??????? ##?????????????? | | ??### #### ###??????? ##?????????????? | | ??### ?????## ##?????? ###????????????? | | ???####?????### r ###??## ####???????????? | | ???####?????#### ####### ###???????????? | | ??####???####### ##### ##???????????? | | ??####??######## ##???????????? | | ??## ##### ## ##???????????? | | ??## ### ???????????? | | ??## # ??????????????? | | ??### ### k ## ?###??????????????? | | ??#### ##### u u####??????????????????? | | ???### ######## %# ####?????????????????? | | ???## =% ####### ####????????????????? | | ???## [ ##### ####???????????????? | | ???### ## #### dd ###???????????????? | | ???####### #### @ ##???????????????? | | ????####### ##### ##???????????????? | | ????????#### ###### ##???????????????? | | ?????????#########?### ###???????????????? | | ??????????# ###??### ####???????????????? | | ????????????????????## ##????????????????? | | ???????????????????## ##????????????????? | | ???????????????????## ##????????????????? | | ???????????????????## ##????????????????? | | ???????????????????## ##???????????????? | | ???????????????????## % ##???????????????? | | ???????????????????## a ###???????????????? | | ???????????????????### a ####???????????????? | | ???????????????????#####a #####????????????????? | | ????????????????????### #####?????????????????? | | ???????????????????????? ###???????????????????? | | ???????????????????????? #????????????????????? | | ???????????????????????? ??????????????????????? | | ???????????????????????? ??????????????????????? | | ?????????????????????????????????????????????????? | | ?????????????????????????????????????????????????? | | ?????????????????????????????????????????????????? | | ?????????????????????????????????????????????????? | | ?????????????????????????????????????????????????? | | ?????????????????????????????????????????????????? | +----------------------------------------------------+ Best States ------------- Heat Dissipation 25 Energy Generation 10 Energy Capacity 250 Matter Stores 300 Matter Capacity 300 Sight Range 16 Terrain Scan Density 10 Armor Coverage 225 Evasion (%) 45 Recoil Reduction 1 Item Schematics ----------------- None Robot Schematics ------------------ None Fabricated ------------ Nothing Alien Tech Used ----------------- None Achievements -------------- None Challenges ------------ None Game ------ Seed SurveybotBehemothNetwork Manual? 0 Play Time 00:11:19 Cumulative 207.0 hours Start 2023.01.31 @ 14:59:30 End 2023.01.31 @ 15:19:58 Sessions 2 Manual Loads 0 Difficulty Rogue Special Mode None Game No. 281 Rogue 281 Adventurer 0 Explorer 0 Win Type - Total 5 Types 1/0/3/0/0/0/1/0/0 Lore% 77 Gallery% 84 Achievement% 65 Wizard Run 0 Options --------- ASCII 0 Keyboard 0 Movement Numpad Keybinds 0 Fullscreen 1 Font 18/SmallcapsGlow Map View 76x50 Tactical HUD 1 Map Filters NONE Filters NONE Steam 1 RUN: bbd1941d-f10c-42d6-b9a3-2ce5505d8617